bitfinex/quotes_BTCUSD_20250417
["timestamp","ask_amount","ask_price","bid_price","bid_amount"]
[1744884843570,0.0014511,84250.0,84249.0,0.59631325]
[1744884843909,0.0014511,84250.0,84249.0,0.59731325]
[1744884844111,0.0014511,84250.0,84249.0,0.59631325]
[1744884844375,0.0014511,84250.0,84249.0,0.38606534]
[1744884846082,0.0014511,84250.0,84249.0,0.1486738]
[1744884846386,0.0014511,84250.0,84249.0,0.24782534]
[1744884846949,0.0014511,84250.0,84249.0,0.24682534]
[1744884847159,0.0014511,84250.0,84249.0,0.23982534]
[1744884847455,0.0004511,84250.0,84249.0,0.24682534]
[1744884847680,0.0014511,84250.0,84249.0,0.24682534]
[1744884847881,0.0014511,84250.0,84249.0,0.23982534]
[1744884848098,0.0024511,84250.0,84249.0,0.24682534]
[1744884848457,0.0004511,84250.0,84249.0,0.23982534]
[1744884848657,0.0004511,84250.0,84249.0,0.24582534]
[1744884848874,0.0014511,84250.0,84249.0,0.24582534]
[1744884850148,0.0014511,84250.0,84249.0,0.24682534]
[1744884855116,0.0024511,84250.0,84249.0,0.0094338]
[1744884855318,0.29823982,84250.0,84249.0,0.0084338]
[1744884855524,0.40768773,84250.0,84249.0,0.0084338]
[1744884856803,0.41768773,84250.0,84249.0,0.0074338]
[1744884857452,0.41668773,84250.0,84249.0,0.0014338]
[1744884857866,0.41668773,84250.0,84249.0,0.0024338]
[1744884858075,0.41768773,84250.0,84249.0,0.0014338]
[1744884858281,0.41868773,84250.0,84249.0,0.0014338]
[1744884859441,0.82958773,84250.0,84249.0,0.0014338]
[1744884859821,0.84412858,84250.0,84249.0,0.0014338]
[1744884861852,1.23382858,84250.0,84249.0,0.0014338]
[1744884864016,1.2421116,84250.0,84249.0,0.0014338]
[1744884864191,1.26319908,84250.0,84249.0,0.0014338]
[1744884864409,1.27424285,84250.0,84249.0,0.0014338]
[1744884864705,1.27524285,84250.0,84249.0,0.0014338]
[1744884864905,0.23743099,84235.0,84234.0,0.0002656]
[1744884865109,0.3668789,84235.0,84234.0,0.0002656]
[1744884865322,1.13231975,84235.0,84234.0,0.0002656]
[1744884865493,1.22681975,84235.0,84234.0,0.0002656]
[1744884866484,1.23509385,84235.0,84234.0,0.0002656]
[1744884867279,1.22881975,84235.0,84234.0,0.0002656]
[1744884867598,1.26246556,84235.0,84234.0,0.0012656]
[1744884868040,1.28452269,84235.0,84234.0,0.0012656]
[1744884868241,1.18953603,84235.0,84234.0,0.0012656]
[1744884868449,1.14383603,84235.0,84234.0,0.0012656]
[1744884869088,1.1217789,84235.0,84234.0,0.0012656]
[1744884870039,1.14383427,84235.0,84234.0,0.0012656]
[1744884871089,1.1548608,84235.0,84234.0,0.0012656]
[1744884871526,1.13280543,84235.0,84234.0,0.0012656]
[1744884872234,1.1217789,84235.0,84234.0,0.0012656]
[1744884872355,1.1117789,84235.0,84234.0,0.0012656]
[1744884872818,1.1217789,84235.0,84234.0,0.0012656]
[1744884873381,1.13631975,84235.0,84234.0,0.0012656]
[1744884873787,1.25348093,84235.0,84234.0,0.0012656]
[1744884873973,1.26451126,84235.0,84234.0,0.0012656]
[1744884874826,1.27278516,84235.0,84234.0,0.0012656]
[1744884875325,0.5919803,84232.0,84231.0,0.0017774]
[1744884875561,1.28232821,84232.0,84231.0,0.0017774]
[1744884875739,1.29060211,84232.0,84231.0,0.0017774]
[1744884875940,1.32369362,84232.0,84231.0,0.0017774]
[1744884876957,1.32469362,84232.0,84231.0,0.0017774]
[1744884877936,1.32569362,84232.0,84231.0,0.0017774]
[1744884878344,1.31115277,84232.0,84231.0,0.0017774]
[1744884878737,1.45011277,84232.0,84231.0,0.0017774]
[1744884880181,1.46465362,84232.0,84231.0,0.0017774]
[1744884884665,1.32569362,84232.0,84231.0,0.0017774]
[1744884884873,1.46465362,84232.0,84231.0,0.0017774]
[1744884885384,1.46565362,84232.0,84231.0,0.0017774]
[1744884885888,1.32669362,84232.0,84231.0,0.0017774]
[1744884886086,1.46565362,84232.0,84231.0,0.0017774]
[1744884891336,1.46465362,84232.0,84231.0,0.0017774]
[1744884891554,1.46565362,84232.0,84231.0,0.0017774]
[1744884899428,1.46565362,84232.0,84206.0,0.001]
[1744884899429,0.23748456,84216.0,84206.0,0.001]
[1744884899595,0.92783247,84216.0,84207.0,0.001]
[1744884899812,0.95816755,84216.0,84207.0,0.001]
[1744884899971,0.96919788,84216.0,84207.0,0.001]
[1744884900167,0.96919788,84216.0,84206.0,0.001]
[1744884900393,0.96919788,84216.0,84204.0,0.0484]
[1744884900558,0.96930483,84216.0,84215.0,0.0014219]
[1744884900752,0.96975565,84216.0,84215.0,0.0004219]
[1744884901202,0.97175565,84216.0,84215.0,0.0014219]
[1744884901869,0.98385647,84216.0,84215.0,0.0014219]
[1744884902067,0.98485647,84216.0,84215.0,0.0014219]
[1744884904596,1.31658257,84216.0,84215.0,0.0014219]
[1744884904833,1.30895529,84216.0,84215.0,0.0014219]
[1744884905575,1.29792496,84216.0,84215.0,0.0014219]
[1744884906208,1.29892496,84216.0,84215.0,0.0014219]
[1744884906407,1.29892496,84216.0,84201.0,0.002]
[1744884906408,0.23752404,84202.0,84201.0,0.002]
[1744884906615,0.80787195,84202.0,84201.0,0.002]
[1744884906809,1.14787195,84202.0,84201.0,0.002]
[1744884907828,1.14887195,84202.0,84201.0,0.004]
[1744884908281,1.1793036,84202.0,84201.0,0.004]
[1744884909002,1.1803036,84202.0,84201.0,0.004]
[1744884909284,1.1793036,84202.0,84201.0,0.002]
[1744884909514,1.15817149,84202.0,84201.0,0.002]
[1744884909735,1.14987195,84202.0,84201.0,0.002]
[1744884910971,1.17198849,84202.0,84201.0,0.002]
[1744884911372,1.18028143,84202.0,84201.0,0.002]
[1744884911909,1.18028143,84202.0,84201.0,0.33632687]
[1744884911910,0.44330948,84202.0,84201.0,0.33632687]
[1744884912137,0.23952404,84202.0,84201.0,0.0988]
[1744884912288,0.002,84202.0,84201.0,0.0988]
[1744884912483,0.23952404,84202.0,84201.0,0.0988]
[1744884912688,0.35897195,84202.0,84201.0,0.003]
[1744884912864,0.36897195,84202.0,84201.0,0.003]
[1744884913131,0.70897195,84202.0,84201.0,0.003]
[1744884917842,1.11987195,84202.0,84201.0,0.003]
[1744884919222,0.70897195,84202.0,84201.0,0.003]
[1744884925061,0.58952404,84202.0,84201.0,0.004]
[1744884928809,0.58952404,84202.0,84201.0,0.003]
[1744884929163,0.58952404,84202.0,84201.0,0.004]
[1744884933211,0.70897195,84202.0,84201.0,0.003]
[1744884938093,0.002,84202.0,84201.0,0.33582687]
[1744884938468,0.002,84202.0,84201.0,0.47458687]
[1744884938852,0.001,84202.0,84201.0,0.48671692]
[1744884939052,0.00145082,84216.0,84215.0,0.33508738]
[1744884940443,0.00245082,84216.0,84215.0,0.33508738]
[1744884940855,0.00229118,84216.0,84215.0,0.33508738]
[1744884941974,0.00229118,84216.0,84215.0,0.33608738]
[1744884942133,0.00129118,84216.0,84215.0,0.33608738]
[1744884942539,0.00229118,84216.0,84215.0,0.33708738]
[1744884943076,0.00229118,84216.0,84215.0,0.33908738]
[1744884944639,0.00229118,84216.0,84215.0,0.45853529]
[1744884945320,0.00129118,84216.0,84215.0,0.45753529]
[1744884945517,0.00229118,84216.0,84215.0,0.46353529]
[1744884945950,0.00229118,84216.0,84215.0,0.34408738]
[1744884946332,0.00229118,84216.0,84215.0,0.34208738]
[1744884946505,0.00229118,84216.0,84215.0,0.34608738]
[1744884947060,0.00229118,84216.0,84215.0,0.34208738]
[1744884947454,0.00229118,84216.0,84215.0,0.34508738]
[1744884948394,0.00229118,84216.0,84215.0,0.46453529]
[1744884948732,0.00229118,84216.0,84215.0,0.60437529]
[1744884951254,0.00129118,84216.0,84215.0,0.60337529]
[1744884951460,0.00129118,84216.0,84215.0,0.60437529]
[1744884955401,0.00129118,84216.0,84215.0,0.60433529]
[1744884957544,0.00129118,84216.0,84215.0,0.48488738]
[1744884957703,0.00129118,84216.0,84215.0,0.43638738]
[1744884961806,0.00129118,84216.0,84215.0,0.43538738]
[1744884964207,0.00129118,84216.0,84215.0,0.48478738]
[1744884964436,0.00129118,84216.0,84215.0,0.60423529]
[1744884965896,0.00129118,84216.0,84215.0,0.94423529]
[1744884971175,0.00129118,84216.0,84215.0,0.80443529]
[1744884971380,0.00129118,84216.0,84215.0,0.94251529]
[1744884973692,0.00129118,84216.0,84215.0,0.60251529]
[1744884973843,0.00129118,84216.0,84215.0,0.38656738]
[1744884974046,0.00129118,84216.0,84215.0,0.38556738]
[1744884974363,0.00129118,84216.0,84215.0,0.14908]
[1744884974565,0.00129118,84216.0,84215.0,0.38356738]
[1744884974971,0.00129118,84216.0,84215.0,0.24848738]
[1744884976050,0.00029118,84216.0,84215.0,0.24248738]
[1744884976500,0.00129118,84216.0,84215.0,0.01]
[1744884976702,0.00129118,84216.0,84215.0,0.24748738]
[1744884979173,0.23977574,84216.0,84215.0,0.009]
[1744884979380,0.23977574,84216.0,84215.0,0.01]
[1744884979381,0.00229118,84216.0,84215.0,0.01]
[1744884979579,0.0475,84230.0,84215.0,0.01]
[1744884979580,0.049,84248.0,84245.0,0.01287014]
[1744884979882,0.0008424,84249.0,84248.0,0.23839435]
[1744884980833,0.0008424,84249.0,84248.0,0.23846414]
[1744884981860,0.0028424,84249.0,84248.0,0.23846414]
[1744884982665,0.0058424,84249.0,84248.0,0.23846414]
[1744884983898,0.00574306,84249.0,84248.0,0.23846414]
[1744884986789,0.00374306,84249.0,84248.0,0.23846414]
[1744884986982,0.00074306,84249.0,84248.0,0.23846414]
[1744884987243,0.00174306,84249.0,84248.0,0.23846414]
[1744884987445,0.00274306,84249.0,84248.0,0.23846414]
[1744884994585,0.00274306,84249.0,84248.0,0.23946414]
[1744884994758,0.00274306,84249.0,84248.0,0.28616414]
[1744884995371,0.00174306,84249.0,84248.0,0.28616414]
[1744884995567,0.00174306,84249.0,84248.0,0.28516414]
[1744884995771,0.00074306,84249.0,84248.0,0.23946414]
[1744884995953,0.00074306,84249.0,84248.0,0.24346414]
[1744884996156,0.00174306,84249.0,84248.0,0.24346414]
[1744884996837,0.00174306,84249.0,84248.0,0.24546414]
[1744884997255,0.00174306,84249.0,84248.0,0.24346414]
[1744884997615,0.00174306,84249.0,84248.0,0.24546414]
[1744884997913,0.00174306,84249.0,84248.0,0.36491205]
[1744884998110,0.00174306,84249.0,84248.0,0.41311205]
[1744885006237,0.00174306,84249.0,84248.0,0.36491205]
[1744885006697,0.00174306,84249.0,84248.0,0.50247205]
[1744885007250,0.00174306,84249.0,84248.0,0.38302414]
[1744885009560,0.00174306,84249.0,84248.0,0.38402414]
[1744885011173,0.00174306,84249.0,84248.0,0.38302414]
[1744885016557,0.00174306,84249.0,84248.0,0.24546414]
[1744885016815,0.00174306,84249.0,84248.0,0.38302414]
[1744885021197,0.00174306,84249.0,84248.0,0.50247205]
[1744885022826,0.00174306,84249.0,84248.0,0.55127205]
[1744885023548,0.00174306,84249.0,84248.0,0.54927205]
[1744885023869,0.00074306,84249.0,84248.0,0.54827205]
[1744885024073,0.00174306,84249.0,84248.0,0.55327205]
[1744885026029,0.0008444,84269.0,84268.0,0.23833801]
[1744885026225,0.0008444,84269.0,84268.0,0.37589801]
[1744885026640,0.0008444,84269.0,84268.0,0.3876989]
[1744885027210,0.0048444,84269.0,84268.0,0.3876989]
[1744885028225,0.0048444,84269.0,84268.0,0.57755234]
[1744885028621,0.0048444,84269.0,84268.0,0.58653126]
[1744885029239,0.0008444,84269.0,84268.0,0.58653126]
[1744885029601,0.0008444,84269.0,84268.0,0.59253126]
[1744885031105,0.0008444,84269.0,84268.0,0.45497126]
[1744885031305,0.0008444,84269.0,84268.0,0.59365126]
[1744885033930,0.0008444,84269.0,84268.0,0.54545126]
[1744885034475,0.0008444,84269.0,84268.0,0.52324573]
[1744885036881,0.0008444,84269.0,84268.0,0.54539839]
[1744885038094,0.0008444,84269.0,84268.0,0.88539839]
[1744885041783,0.0008444,84269.0,84268.0,0.74671839]
[1744885042104,0.0008444,84269.0,84268.0,0.88539839]
[1744885044113,0.0008444,84269.0,84268.0,0.86324573]
[1744885048814,0.2841796,84269.0,84268.0,0.007]
[1744885048994,0.4541796,84269.0,84268.0,0.006]
[1744885049240,0.0468444,84269.0,84268.0,0.007]
[1744885049448,0.2841796,84269.0,84268.0,0.007]
[1744885049671,0.2841796,84269.0,84268.0,0.005]
[1744885049970,0.2841796,84269.0,84268.0,0.003]
[1744885050167,0.2861796,84269.0,84268.0,0.003]
[1744885051177,0.2861796,84269.0,84268.0,0.001]
[1744885051629,0.2871796,84269.0,84268.0,0.001]
[1744885056170,0.0498444,84269.0,84268.0,0.001]
[1744885056371,0.2871796,84269.0,84268.0,0.001]
[1744885059165,0.2971796,84269.0,84268.0,0.001]
[1744885062347,0.2871796,84269.0,84268.0,0.001]
[1744885067885,0.0048444,84269.0,84268.0,0.001]
[1744885068567,0.2421796,84269.0,84268.0,0.001]
[1744885072583,0.23734364,84266.0,84265.0,0.001]
[1744885073626,0.24734364,84266.0,84265.0,0.001]
[1744885073811,0.24834364,84266.0,84265.0,0.001]
[1744885074135,0.23734928,84264.0,84263.0,0.001]
[1744885075950,0.23734928,84264.0,84260.0,0.0001556]
[1744885075951,0.28675773,84261.0,84260.0,0.0011556]
[1744885076086,0.32675773,84261.0,84260.0,0.0001556]
[1744885076289,0.44620564,84261.0,84260.0,0.0001556]
[1744885077135,0.44720564,84261.0,84260.0,0.0001556]
[1744885077398,0.44920564,84261.0,84260.0,0.0001556]
[1744885081642,0.237369,84257.0,84256.0,0.001]
[1744885081844,0.267369,84257.0,84256.0,0.001]
[1744885082045,0.2373859,84251.0,84250.0,0.001]
[1744885082258,0.27925519,84251.0,84250.0,0.001]
[1744885082668,0.2373859,84251.0,84250.0,0.001]
[1744885083570,0.2383859,84251.0,84250.0,0.001]
[1744885084129,0.2393859,84251.0,84250.0,0.001]
[1744885084753,0.23738872,84250.0,84249.0,0.001]
[1744885084972,0.35738872,84250.0,84249.0,0.001]
[1744885086328,0.23738872,84250.0,84249.0,0.001]
[1744885089467,0.34738872,84250.0,84249.0,0.001]
[1744885090539,0.23738872,84250.0,84249.0,0.001]
[1744885095135,0.2373865,84251.0,84250.0,0.001]
[1744885096347,0.2383865,84251.0,84250.0,0.001]
[1744885096892,0.2393865,84251.0,84250.0,0.001]
[1744885097594,0.2393859,84251.0,84250.0,0.001]
[1744885102912,0.002,84251.0,84250.0,0.23838872]
[1744885103056,0.002,84251.0,84250.0,0.001]
[1744885103512,0.2393859,84251.0,84250.0,0.001]
[1744885103674,0.002,84251.0,84250.0,0.23838872]
[1744885103874,0.002,84251.0,84250.0,0.001]
[1744885104369,0.2393859,84251.0,84250.0,0.001]
[1744885106535,0.002,84251.0,84250.0,0.23838872]
[1744885107411,0.002,84251.0,84250.0,0.001]
[1744885108179,0.002,84251.0,84250.0,0.23938872]
[1744885109258,0.002,84251.0,84250.0,0.26161998]
[1744885112205,0.002,84251.0,84250.0,0.26177558]
[1744885116136,0.002,84251.0,84250.0,0.26077558]
[1744885116336,0.002,84251.0,84250.0,0.26177558]
[1744885116747,0.002,84251.0,84250.0,0.23954432]
[1744885118122,0.002,84251.0,84250.0,0.23854432]
[1744885118307,0.002,84251.0,84250.0,0.23954432]
[1744885122885,0.002,84251.0,84250.0,0.26175323]
[1744885130285,0.002,84251.0,84250.0,0.23954432]
[1744885131276,0.002,84251.0,84250.0,0.23838872]
[1744885131479,0.002,84251.0,84250.0,0.23854432]
[1744885137218,0.002,84251.0,84250.0,0.0011556]
[1744885137422,0.2393859,84251.0,84250.0,0.0011556]
[1744885138074,0.2403859,84251.0,84250.0,0.0011556]
[1744885141647,0.2393859,84251.0,84250.0,0.001]
[1744885142050,0.002,84251.0,84250.0,0.001]
[1744885142416,0.2393859,84251.0,84250.0,0.001]
[1744885145564,0.2393859,84251.0,84250.0,0.0011556]
[1744885152194,0.35883381,84251.0,84250.0,0.0001556]
[1744885153345,0.37084795,84251.0,84250.0,0.0001556]
[1744885153548,0.37184795,84251.0,84250.0,0.0001556]
[1744885154139,0.91844795,84251.0,84250.0,0.0001556]
[1744885154343,0.91844795,84251.0,84248.0,1e-08]
[1744885154344,0.68603239,84249.0,84248.0,1e-08]
[1744885154543,0.67153663,84233.0,84232.0,0.000421]
[1744885154751,1.10734454,84233.0,84232.0,0.0005336]
[1744885156134,1.11034454,84233.0,84232.0,0.0005336]
[1744885156563,1.53578539,84233.0,84232.0,0.0005336]
[1744885157144,1.53578539,84233.0,84232.0,0.0015336]
[1744885157351,1.54078539,84233.0,84232.0,0.0015336]
[1744885157573,1.53578539,84233.0,84232.0,0.0005336]
[1744885157904,1.53978539,84233.0,84232.0,0.0015336]
[1744885158200,1.54278539,84233.0,84232.0,0.0015336]
[1744885158766,1.53978539,84233.0,84232.0,0.0015336]
[1744885158965,1.54378539,84233.0,84232.0,0.0015336]
[1744885167567,1.54378539,84233.0,84232.0,1e-08]
[1744885167568,1.6632333,84233.0,84232.0,1e-08]
[1744885167762,0.68668594,84230.0,84229.0,1e-08]
[1744885168067,0.96613385,84230.0,84229.0,1e-08]
[1744885169703,0.10804085,84218.0,84215.0,0.0004213]
[1744885169905,0.27042876,84217.0,84215.0,0.0004213]
[1744885170139,0.43042876,84217.0,84215.0,0.0004213]
[1744885170979,0.6679105,84217.0,84216.0,0.0014213]
[1744885171182,0.6679105,84217.0,84216.0,0.0004213]
[1744885171345,0.6709105,84217.0,84216.0,0.0004213]
[1744885171879,0.7009105,84217.0,84216.0,1e-08]
[1744885172496,0.5704705,84217.0,84216.0,0.00100001]
[1744885172734,0.7069105,84217.0,84216.0,0.00100001]
[1744885173029,1.1178105,84217.0,84216.0,0.00100001]
[1744885173176,1.12882376,84217.0,84216.0,0.00100001]
[1744885179285,1.1178105,84217.0,84216.0,0.00100001]
[1744885179972,0.96682965,84217.0,84216.0,0.00100001]
[1744885180184,1.10326965,84217.0,84216.0,0.00100001]
[1744885180545,1.15226965,84217.0,84216.0,0.00100001]
[1744885187780,1.10326965,84217.0,84216.0,0.00100001]
[1744885189159,0.96682965,84217.0,84216.0,0.00100001]
[1744885189361,1.10266965,84217.0,84216.0,0.00100001]
[1744885195393,0.96682965,84217.0,84216.0,0.00100001]
[1744885195541,1.10266965,84217.0,84216.0,0.00200001]
[1744885195709,1.10266965,84217.0,84216.0,0.00100001]
[1744885204111,1.1172105,84217.0,84216.0,0.00100001]
[1744885205703,1.1172105,84217.0,84194.0,0.0457]
[1744885205704,0.01187592,84204.0,84198.0,0.0132148]
[1744885205916,0.01187592,84204.0,84197.0,1e-08]
[1744885205917,0.34,84198.0,84197.0,1e-08]
[1744885206067,0.65662876,84198.0,84197.0,1e-08]
[1744885206268,0.81662876,84198.0,84197.0,1e-08]
[1744885206479,0.81662876,84198.0,84182.0,0.0004222]
[1744885206480,0.01081254,84185.0,84182.0,0.0004222]
[1744885206671,0.385,84183.0,84182.0,0.0004222]
[1744885207041,0.81482876,84183.0,84182.0,0.0004222]
[1744885208202,0.83694227,84183.0,84182.0,0.0004222]
[1744885208383,0.83694227,84183.0,84171.0,0.002]
[1744885208384,0.59212133,84182.0,84171.0,0.002]
[1744885208586,1.04313066,84182.0,84171.0,0.002]
[1744885208802,0.92368275,84182.0,84171.0,0.002]
[1744885209006,0.92368275,84182.0,84172.0,0.001]
[1744885209007,0.9091419,84182.0,84172.0,0.001]
[1744885209124,0.9091419,84182.0,84173.0,0.001]
[1744885209323,1.05606768,84182.0,84175.0,0.001421]
[1744885209538,1.03395417,84182.0,84175.0,0.001421]
[1744885209888,1.04195417,84182.0,84175.0,0.001421]
[1744885210612,1.03395417,84182.0,84175.0,0.001421]
[1744885211004,1.03895417,84182.0,84175.0,0.001421]
[1744885211166,1.04495417,84182.0,84175.0,0.001421]
[1744885211373,0.90411417,84182.0,84175.0,0.001421]
[1744885211561,1.03995417,84182.0,84175.0,0.001421]
[1744885211761,1.04395417,84182.0,84175.0,0.001421]
[1744885214072,1.04395417,84182.0,84181.0,0.0014222]
[1744885214073,1.45485416,84182.0,84181.0,0.0014222]
[1744885214670,0.42089999,84182.0,84181.0,0.2400055]
[1744885214882,0.01,84182.0,84181.0,0.3329055]
[1744885215576,0.006,84182.0,84181.0,0.3329055]
[1744885215991,0.001,84182.0,84181.0,0.3329055]
[1744885216225,0.002,84182.0,84181.0,0.3329055]
[1744885218593,0.23754133,84196.0,84181.0,0.3329055]
[1744885218594,0.4061576,84193.0,84192.0,0.23855226]
[1744885219044,0.4061576,84193.0,84192.0,0.28455226]
[1744885219466,0.01187549,84207.0,84205.0,0.001]
[1744885219617,0.11944791,84206.0,84205.0,0.001]
[1744885219825,0.39696067,84206.0,84205.0,0.00133428]
[1744885220864,0.40296067,84206.0,84205.0,0.00133428]
[1744885221092,0.16544791,84206.0,84205.0,0.00133428]
[1744885221848,0.16944791,84206.0,84205.0,0.00133428]
[1744885222701,0.16944791,84206.0,84205.0,0.23884986]
[1744885222702,0.05,84206.0,84205.0,0.23884986]
[1744885223001,0.01,84206.0,84205.0,0.23884986]
[1744885223412,0.006,84206.0,84205.0,0.28584986]
[1744885223585,0.008,84206.0,84205.0,0.28584986]
[1744885223825,0.002,84206.0,84205.0,0.33334986]
[1744885224029,0.004,84206.0,84205.0,0.33434986]
[1744885224233,0.002,84206.0,84205.0,0.33434986]
[1744885224432,0.004,84206.0,84205.0,0.33434986]
[1744885224990,0.002,84206.0,84205.0,0.33434986]
[1744885225334,0.001,84217.0,84205.0,0.33434986]
[1744885225335,0.001,84217.0,84216.0,0.23748456]
[1744885225928,0.001,84217.0,84216.0,0.23848456]
[1744885226839,0.00413587,84217.0,84216.0,0.23948456]
[1744885227036,0.00413587,84217.0,84216.0,0.28728456]
[1744885228017,0.00613587,84217.0,84216.0,0.33448456]
[1744885228395,0.00613587,84217.0,84216.0,0.35659229]
[1744885228804,0.00413587,84217.0,84216.0,0.35659229]
[1744885229066,0.00113587,84217.0,84216.0,0.35559229]
[1744885229390,0.00213587,84217.0,84216.0,0.35759229]
[1744885230358,0.00113587,84217.0,84216.0,0.35659229]
[1744885230519,0.00113587,84217.0,84216.0,0.4760402]
[1744885231340,0.00113587,84217.0,84216.0,0.4750402]
[1744885231645,0.00113587,84217.0,84216.0,0.4770402]
[1744885232160,0.00213587,84217.0,84216.0,0.4800402]
[1744885233576,0.00213587,84217.0,84216.0,0.45793247]
[1744885234402,0.00213587,84217.0,84216.0,0.4666567]
[1744885234605,0.00213587,84217.0,84216.0,0.48871116]
[1744885237338,0.00213587,84217.0,84216.0,0.48904542]
[1744885238538,0.00213587,84217.0,84216.0,0.33881882]
[1744885240485,0.00213587,84217.0,84216.0,0.29101882]
[1744885241329,0.00213587,84217.0,84216.0,0.24381882]
[1744885241697,0.00213587,84217.0,84216.0,0.24381881]
[1744885245631,0.00213587,84217.0,84216.0,0.26594554]
[1744885248722,0.00213587,84217.0,84216.0,0.31654554]
[1744885249069,0.00213587,84217.0,84216.0,0.36344554]
[1744885251232,0.00113587,84217.0,84216.0,0.36344554]
[1744885252633,0.00113587,84217.0,84216.0,0.31384554]
[1744885254904,0.00113587,84217.0,84216.0,0.32265828]
[1744885256399,0.00113587,84217.0,84216.0,0.44210619]
[1744885256605,0.00113587,84217.0,84216.0,0.49020619]
[1744885257497,0.00113587,84217.0,84216.0,0.83020619]
[1744885257712,1e-08,84217.0,84216.0,0.84474704]
[1744885257878,0.0008428,84240.0,84239.0,0.23841972]
[1744885258202,0.0008428,84240.0,84239.0,0.23875396]
[1744885258614,0.0008428,84240.0,84239.0,0.26088069]
[1744885259178,0.0028428,84240.0,84239.0,0.26088069]
[1744885259586,0.0038428,84240.0,84239.0,0.26088069]
[1744885263786,0.0038428,84240.0,84239.0,0.26088068]
[1744885265994,0.0048428,84240.0,84239.0,0.02346096]
[1744885266233,0.64040761,84240.0,84239.0,0.02246096]
[1744885266441,1.04656521,84240.0,84239.0,0.02246096]
[1744885266646,1.04656521,84240.0,84239.0,0.00033423]
[1744885267599,1.04356521,84240.0,84239.0,0.00033423]
[1744885267955,1.04556521,84240.0,84239.0,0.00033423]
[1744885268327,1.05056521,84240.0,84239.0,0.00133423]
[1744885268492,1.04856521,84240.0,84239.0,0.00133423]
[1744885268817,1.05156521,84240.0,84239.0,0.00133423]
[1744885269810,1.39156521,84240.0,84239.0,0.00133423]
[1744885270016,1.40610606,84240.0,84239.0,0.00133423]
[1744885272667,1.39156521,84240.0,84239.0,0.00133423]
[1744885276950,1.29286521,84240.0,84239.0,0.00133423]
[1744885277180,0.8334173,84240.0,84239.0,0.00233423]
[1744885278165,0.95286521,84240.0,84239.0,0.00133423]
[1744885278653,1.04426521,84240.0,84239.0,0.00133423]
[1744885279285,1.38426521,84240.0,84239.0,0.00133423]
[1744885281789,1.33796521,84240.0,84239.0,0.00133423]
[1744885282628,1.29286521,84240.0,84239.0,0.00233423]
[1744885284469,0.71544831,84240.0,84239.0,0.00233423]
[1744885284623,0.5960004,84240.0,84239.0,0.00233423]
[1744885285381,0.8334173,84240.0,84239.0,0.00233423]
[1744885287470,0.4272597,84240.0,84239.0,0.00233423]
[1744885289524,0.1898428,84240.0,84239.0,0.23975395]
[1744885289669,0.2472597,84240.0,84239.0,0.00233423]
[1744885289858,0.0098428,84240.0,84239.0,0.00233423]
[1744885290061,0.2472597,84240.0,84239.0,0.00233423]
[1744885292355,0.2572597,84240.0,84239.0,0.00233423]
[1744885292754,0.0198428,84240.0,84239.0,0.00233423]
[1744885292945,0.0098428,84240.0,84239.0,0.00233423]
[1744885293141,0.0098428,84240.0,84239.0,0.26194585]
[1744885293379,0.0098428,84240.0,84239.0,0.26294585]
[1744885293582,0.0098428,84240.0,84239.0,0.26294584]
[1744885293965,0.0068428,84240.0,84239.0,0.26294584]
[1744885294306,0.0068428,84240.0,84239.0,0.30904584]
[1744885294307,0.0018428,84240.0,84239.0,0.30904584]
[1744885294444,0.0018428,84240.0,84239.0,0.30904583]
[1744885294903,0.0018428,84240.0,84239.0,0.31004583]
[1744885295313,0.0018428,84240.0,84239.0,0.30904583]
[1744885296089,0.0018428,84240.0,84239.0,0.31004583]
[1744885296551,0.0018428,84240.0,84239.0,0.31204583]
[1744885297490,0.0018428,84240.0,84239.0,0.31204582]
[1744885300974,0.0018428,84240.0,84239.0,0.43149373]
[1744885302200,0.0018428,84240.0,84239.0,0.43149372]
[1744885302434,0.0018428,84240.0,84239.0,0.43145354]
[1744885305954,0.0018428,84240.0,84239.0,0.42945354]
[1744885306132,0.0018428,84240.0,84239.0,0.43045354]
[1744885306563,0.0018428,84240.0,84239.0,0.43245354]
[1744885307466,0.0018428,84240.0,84239.0,0.43245353]
[1744885308024,0.0018428,84240.0,84239.0,0.38535353]
[1744885308265,0.0018428,84240.0,84239.0,0.26590562]
[1744885311300,0.0008428,84240.0,84239.0,0.26490562]
[1744885313675,0.0008428,84240.0,84239.0,0.26490561]
[1744885313860,0.0008428,84240.0,84239.0,0.31430561]
[1744885314071,0.0008428,84240.0,84239.0,0.43375352]
[1744885321614,0.0008428,84240.0,84239.0,0.43275352]
[1744885321739,0.0008428,84240.0,84239.0,0.43375352]
[1744885326691,0.0008428,84240.0,84239.0,0.40394561]
[1744885326896,0.0008428,84240.0,84239.0,0.4039456]
[1744885327990,0.0008428,84240.0,84239.0,0.52339351]
[1744885334830,0.0008428,84240.0,84239.0,0.53172337]
[1744885339631,0.0008428,84240.0,84239.0,0.87172337]
[1744885340503,0.0008428,84240.0,84239.0,0.86972337]
[1744885340807,0.0018428,84240.0,84239.0,0.87272337]
[1744885341016,0.0018428,84240.0,84239.0,0.87572337]
[1744885341546,0.0018428,84240.0,84239.0,0.98696422]
[1744885341547,1e-08,84240.0,84239.0,0.98696422]
[1744885341662,1e-08,84240.0,84239.0,0.98796421]
[1744885342113,1e-08,84240.0,84239.0,0.98700421]
[1744885344594,1e-08,84240.0,84239.0,1.03700421]
[1744885344990,0.000843,84251.0,84239.0,1.03700421]
[1744885344991,1e-08,84251.0,84250.0,0.67168872]
[1744885345119,0.00013588,84251.0,84250.0,0.79147078]
[1744885345314,0.00013588,84251.0,84250.0,0.80601163]
[1744885345579,1e-08,84251.0,84250.0,0.80701163]
[1744885345721,1e-08,84251.0,84250.0,0.81534149]
[1744885345918,1e-08,84251.0,84250.0,0.83749321]
[1744885346121,1e-08,84251.0,84250.0,1.2562932]
[1744885347630,1e-08,84251.0,84250.0,1.2612932]
[1744885348274,1e-08,84251.0,84250.0,1.2632932]
[1744885348411,1e-08,84259.0,84258.0,0.59390703]
[1744885348616,1e-08,84259.0,84258.0,1.31612908]
[1744885348951,1e-08,84259.0,84258.0,1.33828079]
[1744885349182,1e-08,84259.0,84258.0,1.34661065]
[1744885351206,1e-08,84259.0,84258.0,1.3476202]
[1744885351860,1e-08,84259.0,84258.0,1.3486202]
[1744885352052,1e-08,84259.0,84258.0,1.34862019]
[1744885353959,1e-08,84259.0,84258.0,1.34762019]
[1744885354861,1e-08,84259.0,84258.0,1.21058019]
[1744885355071,1e-08,84259.0,84258.0,1.34762019]
[1744885355417,1e-08,84259.0,84258.0,1.33929033]
[1744885355560,1e-08,84259.0,84258.0,1.33929032]